bitfinex/quotes_ETHUSD_20220308
["timestamp","ask_amount","ask_price","bid_price","bid_amount"]
[1646708885443,2.26008,2552.2,2551.9,0.00529982]
[1646708885845,1.96008,2552.2,2551.7,3.26787375]
[1646708886043,2.26008,2552.2,2551.8,1.36582]
[1646708886447,2.26008,2552.2,2551.9,0.00512485]
[1646708886448,1.96008,2552.2,2551.9,0.00512485]
[1646708886647,2.26008,2552.2,2551.9,0.00512485]
[1646708887047,2.26008,2552.2,2551.7,3.26787375]
[1646708887321,2.26008,2552.2,2551.9,0.00543623]
[1646708887322,5.65966757,2552.1,2551.9,0.00543623]
[1646708887511,3.991,2552.0,2551.9,0.00543623]
[1646708887710,0.491,2552.0,2551.9,0.00543623]
[1646708887910,0.69039757,2552.0,2551.9,0.00406936]
[1646708888312,0.69039757,2552.0,2551.7,0.7254085]
[1646708888510,0.19939757,2551.9,2551.7,0.7254085]
[1646708888811,2.65102757,2551.9,2551.7,0.7254085]
[1646708889010,2.95102757,2551.9,2551.7,0.7254085]
[1646708889210,0.19939757,2551.8,2551.7,0.7254085]
[1646708889812,0.19939757,2551.8,2551.7,0.72803235]
[1646708890614,0.19939757,2551.8,2551.7,0.7254085]
[1646708891476,3.69939757,2551.8,2551.7,0.7254085]
[1646708891872,0.19939757,2551.8,2551.7,0.7254085]
[1646708893072,3.73191,2551.9,2551.7,0.7254085]
[1646708894073,0.19935965,2551.8,2551.7,0.7254085]
[1646708894474,3.73191,2551.9,2551.7,0.7254085]
[1646708894677,3.73191,2551.9,2551.7,0.73074954]
[1646708895491,3.73191,2551.9,2551.7,0.7254085]
[1646708895694,3.73191,2551.9,2551.7,0.73074954]
[1646708896501,0.98028,2551.9,2551.7,1.89844954]
[1646708896698,0.98028,2551.9,2551.7,1.8931085]
[1646708896900,0.98031,2552.0,2551.7,1.89841027]
[1646708897999,0.98031,2552.0,2551.7,0.7254085]
[1646708898000,1.96046,2551.9,2551.7,0.7254085]
[1646708898396,2.26046,2551.9,2551.7,0.73071022]
[1646708899041,2.26046,2551.9,2551.7,0.7254085]
[1646708899442,2.26046,2551.9,2551.7,0.73071027]
[1646708899641,1.96046,2551.9,2551.7,0.73071027]
[1646708900243,1.96046,2551.9,2551.7,0.7254085]
[1646708900643,1.96046,2551.9,2551.7,0.7307157]
[1646708901447,1.96046,2551.9,2551.7,0.7254085]
[1646708901646,2.26046,2551.9,2551.7,0.7254085]
[1646708901847,2.26046,2551.9,2551.7,0.7307157]
[1646708902693,2.26046,2551.9,2551.7,0.7254085]
[1646708902893,2.26046,2551.9,2551.7,0.7307157]
[1646708903995,2.26046,2551.9,2551.7,0.7254085]
[1646708904194,2.26046,2551.9,2551.7,0.73071255]
[1646708904394,1.96046,2551.9,2551.7,0.73071255]
[1646708905194,1.96046,2551.9,2551.7,0.7254085]
[1646708905396,1.96046,2551.9,2551.7,0.73071255]
[1646708905797,2.26046,2551.9,2551.7,0.73071255]
[1646708906247,2.26046,2551.9,2551.7,0.7254085]
[1646708906646,2.26046,2551.9,2551.7,0.73071255]
[1646708907552,2.75146,2551.9,2551.7,0.7254085]
[1646708907749,2.75146,2551.9,2551.7,0.73071277]
[1646708907949,3.75146,2551.9,2551.7,0.73071277]
[1646708908750,3.75146,2551.9,2551.7,0.7254085]
[1646708908951,2.26046,2551.9,2551.7,0.73071277]
[1646708909150,1.96041,2552.0,2551.7,0.73071277]
[1646708909995,1.96041,2552.0,2551.7,0.7254085]
[1646708910195,1.96041,2552.0,2551.7,0.73071271]
[1646708911197,1.96041,2552.0,2551.7,0.7254085]
[1646708911398,1.96041,2552.0,2551.7,0.7307127]
[1646708912001,1.96038,2551.9,2551.7,0.7307127]
[1646708912397,1.96038,2551.9,2551.7,0.7254085]
[1646708912599,2.26038,2551.9,2551.7,0.72911584]
[1646708913648,2.26038,2551.9,2551.7,0.72381164]
[1646708913847,2.26038,2551.9,2551.7,0.72911589]
[1646708914648,2.26038,2551.9,2551.7,0.72381164]
[1646708915048,2.75138,2551.9,2551.7,0.72911589]
[1646708915949,2.75138,2551.9,2551.7,0.72381164]
[1646708916153,2.75138,2551.9,2551.7,0.72911589]
[1646708916755,0.22707564,2551.8,2551.7,0.72911589]
[1646708917155,0.22707564,2551.8,2551.7,0.72381164]
[1646708917396,0.22707564,2551.8,2551.7,0.72905939]
[1646708918198,0.22707564,2551.8,2551.7,0.00524775]
[1646708918400,0.22707564,2551.8,2551.6,0.59342855]
[1646708918598,1.20735564,2551.8,2551.6,0.59867636]
[1646708918799,0.98028,2551.8,2551.6,0.59867636]
[1646708919600,0.98028,2551.8,2551.2,0.9801833]
[1646708919800,1.96052,2551.8,2551.6,0.00524786]
[1646708920001,2.45152,2551.8,2551.6,0.00524786]
[1646708920200,2.75152,2551.8,2551.6,0.00524786]
[1646708920604,0.22734104,2551.7,2551.6,0.00524786]
[1646708920802,1.96049,2551.6,2551.0,0.1959]
[1646708921043,1.96049,2551.6,2551.1,1.34025966]
[1646708921247,2.26049,2551.6,2551.1,1.34025966]
[1646708921448,1.28026,2551.6,2551.1,1.34025966]
[1646708921748,3.24072,2551.6,2551.1,1.34025966]
[1646708922149,3.24072,2551.6,2551.2,0.00530663]
[1646708922748,0.22795689,2551.5,2551.3,1.34245248]
[1646708923153,1.20817689,2551.5,2551.3,1.34245248]
[1646708923353,0.98022,2551.5,2551.3,0.00530658]
[1646708923560,1.96046,2551.5,2551.4,1.34224588]
[1646708923951,1.1524,2551.8,2551.4,1.34224588]
[1646708924152,3.9205,2552.0,2551.4,2.38984588]
[1646708924351,0.22787477,2551.9,2551.5,1.34224588]
[1646708924551,0.22787477,2551.9,2551.5,1.34755225]
[1646708924804,0.22787477,2551.9,2551.6,1.34224588]
[1646708924994,0.22787477,2551.9,2551.7,1.34224588]
[1646708925194,3.24058,2551.8,2551.5,0.00530637]
[1646708925395,0.22787477,2551.7,2551.6,1.34549079]
[1646708925994,1.20808477,2551.7,2551.6,1.34549079]
[1646708926198,0.22787477,2551.7,2551.6,1.34549079]
[1646708928100,0.24470191,2551.7,2551.6,1.34549079]
[1646708928302,2.94058,2551.8,2551.6,1.34549079]
[1646708928541,2.94058,2551.8,2551.7,1.34549079]
[1646708928743,0.2447166,2551.8,2551.7,1.34549079]
[1646708934799,1.2249166,2551.8,2551.2,0.1958]
[1646708934998,2.26044,2551.9,2551.3,1.3322059]
[1646708934999,1.2249066,2551.7,2551.3,1.3322059]
[1646708935198,0.2447166,2551.6,2551.3,1.3322059]
[1646708936648,0.2447166,2551.6,2551.3,1.33781037]
[1646708936849,0.2447166,2551.6,2551.4,1.3322059]
[1646708937049,0.98022,2551.6,2551.5,1.3322059]
[1646708937249,1.24518312,2551.6,2551.5,1.3322059]
[1646708937449,0.98022,2551.6,2551.5,1.3322059]
[1646708937949,1.24518317,2551.6,2551.5,1.3322059]
[1646708938149,1.24518649,2551.6,2551.5,1.3322059]
[1646708938351,0.98022,2551.6,2551.5,1.3322059]
[1646708938650,1.24519357,2551.6,2551.5,1.3322059]
[1646708938852,0.98022,2551.6,2551.5,1.3322059]
[1646708939049,1.24519522,2551.6,2551.5,1.3322059]
[1646708939251,0.98022,2551.6,2551.5,1.3322059]
[1646708939649,1.24520003,2551.6,2551.5,1.3322059]
[1646708943948,0.98022,2551.6,2551.5,1.3322059]
[1646708944950,1.24119071,2551.6,2551.5,1.3322059]
[1646708945351,1.24117939,2551.6,2551.5,1.3322059]
[1646708945550,0.98022,2551.6,2551.5,1.3322059]
[1646708945751,0.98022,2551.6,2551.5,1.3257639]
[1646708946153,1.28019,2551.7,2551.5,1.3257639]
[1646708946154,0.55477964,2551.7,2551.5,1.3257639]
[1646708946354,0.25477964,2551.7,2551.4,0.00529262]
[1646708947154,0.25477964,2551.7,2551.0,1.29770217]
[1646708947400,0.25477964,2551.7,2551.4,0.00529262]
[1646708948200,0.98022,2551.6,2551.4,0.00529262]
[1646708948401,0.98022,2551.6,2551.0,1.29770217]
[1646708948600,0.98024,2551.5,2551.4,0.00530244]
[1646708949502,0.98024,2551.5,2551.0,1.29770217]
[1646708949702,0.98028,2551.4,2551.0,0.59352157]
[1646708949901,0.98028,2551.4,2551.3,0.00528834]
[1646708950702,0.98028,2551.4,2551.1,0.9802435]
[1646708951149,0.98028,2551.4,2551.2,0.00528844]
[1646708952048,0.98028,2551.4,2551.1,0.9802435]
[1646708952249,0.98028,2551.4,2551.2,0.00528832]
[1646708953150,0.98028,2551.4,2551.1,0.9802435]
[1646708953350,0.98028,2551.4,2551.0,0.59352157]
[1646708953551,1.96059,2551.4,2551.2,0.00530252]
[1646708954356,1.96059,2551.4,2551.0,0.59352157]
[1646708954553,1.96059,2551.4,2551.2,0.00530252]
[1646708955598,1.96059,2551.4,2551.1,0.9802534]
[1646708955798,1.96059,2551.4,2551.2,0.00530206]
[1646708956905,1.96059,2551.4,2551.1,0.9802534]
[1646708957106,1.96059,2551.4,2551.2,0.00530206]
[1646708958004,1.96059,2551.4,2551.1,0.9802534]
[1646708958205,1.96059,2551.4,2551.2,0.00530206]
[1646708959247,1.96059,2551.4,2550.6,0.40130413]
[1646708959450,0.98056,2551.1,2550.6,0.40130413]
[1646708960748,0.98056,2551.1,2550.7,0.00530255]
[1646708960950,1.96109,2551.1,2550.7,0.00530255]
[1646708961554,1.96109,2551.1,2550.6,1.10548473]
[1646708961852,1.96109,2551.1,2550.8,0.0053025]
[1646708962306,2.26109,2551.1,2550.8,0.0053025]
[1646708962896,2.26109,2551.1,2550.6,0.40130413]
[1646708963097,2.26109,2551.1,2550.8,0.00530246]
[1646708963598,2.33511288,2551.4,2550.8,0.00530246]
[1646708963599,0.98031,2551.4,2550.8,0.00530246]
[1646708963799,0.71771288,2551.6,2550.8,3.80530246]
[1646708963999,1.88111288,2551.7,2550.8,3.8]
[1646708964399,1.88111288,2551.7,2551.0,0.00530231]
[1646708964602,1.88111288,2551.7,2551.0,0.98550621]
[1646708965201,1.88111288,2551.7,2551.0,0.9802039]
[1646708965501,1.69792288,2551.6,2551.2,0.00530205]
[1646708965704,0.33441921,2551.5,2551.3,1.24290821]
[1646708965905,0.33441921,2551.5,2550.2,0.01262629]
[1646708965906,5.0,2551.2,2550.2,0.01262629]
[1646708966161,5.0,2551.2,2549.5,2.53285557]
[1646708966162,3.0,2550.7,2549.5,2.53285557]
[1646708966361,3.991,2550.6,2549.2,1.14862578]
[1646708966558,2.40594,2550.5,2549.2,0.94407496]
[1646708966757,2.26204,2550.3,2549.1,8.8984]
[1646708966956,2.26204,2550.3,2549.1,4.9317]
[1646708966957,0.89893291,2550.0,2549.1,4.9317]
[1646708967162,3.991,2549.9,2549.0,0.19947366]
[1646708967358,7.18073494,2549.9,2549.0,0.19947366]
[1646708967561,8.18073494,2549.9,2549.0,0.19947366]
[1646708967758,4.991,2549.9,2549.0,0.19947366]
[1646708967959,1.0,2549.6,2549.0,0.19947366]
[1646708968159,0.491,2549.5,2549.0,0.19947366]
[1646708968359,0.3,2549.6,2549.5,0.14144053]
[1646708968758,0.491,2549.8,2549.5,0.14144053]
[1646708969360,1.96243,2549.6,2549.5,0.14144053]
[1646708969560,2.45343,2549.6,2549.5,0.14144053]
[1646708970299,3.43469,2549.6,2549.5,0.14144053]
[1646708970701,6.93469,2549.6,2549.5,0.14144053]
[1646708972503,3.43469,2549.6,2549.5,0.14144053]
[1646708974563,2.45343,2549.6,2549.5,0.14144053]
[1646708974967,0.491,2549.6,2549.5,0.14144053]
[1646708975163,4.06234997,2549.9,2549.5,0.14144053]
[1646708975164,0.13819997,2549.9,2549.5,0.14144053]
[1646708975364,0.43819997,2549.9,2549.5,0.14144053]
[1646708975563,0.13819997,2549.9,2549.5,0.14144053]
[1646708976166,2.10007997,2549.9,2549.5,0.14144053]
[1646708976368,2.40007997,2549.9,2549.6,0.00544172]
[1646708976567,2.45342,2549.8,2549.6,0.00544172]
[1646708976766,3.73464,2549.8,2549.6,0.00544172]
[1646708977404,3.73464,2549.8,2549.5,0.14144053]
[1646708977609,0.98119,2549.7,2549.6,0.00544172]
[1646708977804,1.47219,2549.7,2549.6,0.00544172]
[1646708978406,1.47219,2549.7,2549.5,0.14144053]
[1646708978806,1.47219,2549.7,2549.5,0.14673578]
[1646708979809,1.47219,2549.7,2549.5,0.14144053]
[1646708980008,3.5,2549.6,2549.5,0.14673583]
[1646708980214,3.991,2549.6,2549.5,0.14673583]
[1646708981052,0.491,2549.6,2549.5,0.14144053]
[1646708981457,1.47233,2549.6,2549.5,0.14144053]
[1646708981656,4.97233,2549.6,2549.5,0.14144053]
[1646708982257,1.47233,2549.6,2549.5,0.14144053]
[1646708982559,4.97233,2549.6,2549.5,0.14144053]
[1646708982958,5.0,2549.5,2549.4,0.00530524]
[1646708983159,8.991,2549.5,2549.4,0.00530524]
[1646708983357,0.98143,2549.2,2548.5,7.93045357]
[1646708983562,2.45374,2549.1,2548.5,7.93045357]
[1646708983759,0.491,2549.1,2548.6,0.196]
[1646708984560,0.491,2549.1,2549.0,1.01404631]
[1646708985003,1.47222,2549.1,2548.6,0.196]
[1646708985404,1.47222,2549.1,2548.6,1.177284]
[1646708986003,1.47222,2549.1,2548.7,0.00559265]
[1646708986206,1.47222,2549.1,2548.8,0.196]
[1646708986607,2.45351,2549.1,2548.8,0.196]
[1646708986809,1.9627,2549.0,2548.8,0.196]
[1646708987110,1.9627,2549.0,2548.6,0.196]
[1646708987309,1.9627,2549.0,2548.8,0.00559254]
[1646708988110,1.9627,2549.0,2548.6,1.14639498]
[1646708988308,0.25531801,2549.0,2548.6,1.14639498]
[1646708988552,0.25531801,2549.0,2548.8,0.0055926]
[1646708989353,0.25531801,2549.0,2548.6,1.14639498]
[1646708989553,0.25531801,2549.0,2548.8,0.0055926]
[1646708990557,0.25531801,2549.0,2548.6,1.14639498]
[1646708990754,0.25531801,2549.0,2548.8,0.00540804]
[1646708991158,2.21798801,2549.0,2548.8,0.00540804]
[1646708991358,2.51798801,2549.0,2548.8,0.00540804]
[1646708991758,0.98133,2548.9,2548.5,1.86176387]
[1646708991960,0.98133,2548.9,2548.8,0.00540804]
[1646708992910,0.98133,2548.9,2548.5,2.97716093]
[1646708993111,1.96262,2548.9,2548.7,0.00509946]
[1646708994108,1.96262,2548.9,2548.5,3.17316093]
[1646708995511,1.96262,2548.9,2548.6,0.196]
[1646708996957,1.96262,2548.9,2548.6,0.191694]
[1646708997959,1.96262,2548.9,2548.6,0.19712344]
[1646708998960,1.96262,2548.9,2548.6,0.191694]
[1646708999363,1.96262,2548.9,2548.6,0.19712344]
[1646708999561,0.98129,2548.9,2548.6,0.19712344]
[1646709000209,0.98129,2548.9,2548.6,0.191694]
[1646709000410,0.98129,2548.9,2548.6,0.19712344]
[1646709001415,1.47229,2548.9,2548.6,0.191694]
[1646709001613,1.47229,2548.9,2548.6,0.19697798]
[1646709002014,2.45362,2548.9,2548.6,0.19697798]
[1646709002514,2.45362,2548.9,2548.6,0.191694]
[1646709002716,2.45362,2548.9,2548.6,0.19679881]
[1646709003756,2.45362,2548.9,2548.6,0.191694]
[1646709003960,2.45362,2548.9,2548.6,0.19679881]
[1646709004958,2.45362,2548.9,2548.6,0.191694]
[1646709006368,2.45362,2548.9,2548.7,0.94667383]
[1646709008305,0.74622485,2548.9,2548.7,0.94667383]
[1646709008906,5.1235,2549.4,2548.7,0.94667383]
[1646709008907,0.98121,2549.3,2548.7,0.94667383]
[1646709009107,0.3,2549.0,2548.8,0.9811574]
[1646709009307,1.2273,2549.4,2548.9,0.94667383]
[1646709009509,0.491,2549.6,2548.9,1.24667383]
[1646709009708,2.926,2550.2,2549.0,0.94667383]
[1646709009709,0.66284378,2549.5,2549.0,0.94667383]
[1646709009908,1.64366378,2550.0,2549.1,0.94667383]
[1646709010115,0.66261587,2549.9,2549.2,0.94667383]
[1646709010308,0.66261587,2549.9,2549.5,0.9808052]
[1646709010510,0.66261587,2549.9,2549.7,1.19295135]
[1646709010712,0.66261587,2549.9,2549.8,0.94667383]
[1646709011181,1.20167533,2550.5,2549.8,1.24667383]
[1646709011182,0.98071,2550.4,2549.8,1.24667383]
[1646709011382,0.66254914,2550.3,2549.9,0.94667383]
[1646709011579,0.66254914,2550.3,2550.0,0.94667383]
[1646709011781,3.5,2550.2,2549.7,0.00529579]
[1646709011979,0.981,2550.0,2549.7,0.00529579]
[1646709012181,0.66254914,2549.9,2549.2,0.98005944]
[1646709012379,0.66254914,2549.9,2549.3,0.9169194]
[1646709012578,2.753,2550.2,2549.6,0.02129492]
[1646709012579,0.66254914,2549.8,2549.6,0.02129492]
[1646709012778,2.453,2550.2,2549.7,0.9169194]
[1646709012979,0.66202909,2550.1,2549.7,0.9169194]
[1646709013180,0.66202909,2550.1,2549.6,1.19008677]
[1646709013181,1.47192,2550.0,2549.6,1.19008677]
[1646709013380,0.66202909,2549.9,2549.6,1.16879185]
[1646709013580,0.66202909,2549.9,2549.8,0.00532315]
[1646709014680,0.66202909,2549.9,2549.3,0.3]
[1646709014910,2.62411909,2549.9,2549.7,0.00516355]
[1646709015112,0.66202909,2549.8,2549.7,0.00516355]
[1646709015710,0.66202909,2549.8,2549.2,3.60789805]
[1646709015910,0.66202909,2549.8,2549.3,1.21616475]
[1646709016115,1.64307909,2549.8,2549.6,0.00512408]
[1646709016315,0.66202909,2549.7,2549.6,0.00512408]
[1646709016916,0.66202909,2549.7,2549.3,0.3]
[1646709017115,0.66202909,2549.7,2549.4,0.90628004]
[1646709018416,0.66202909,2549.7,2549.4,0.91127858]
[1646709018654,0.66202909,2549.7,2549.5,0.90628004]
[1646709019257,2.62417909,2549.7,2548.8,4.38293]
[1646709019557,0.98122,2549.5,2549.1,0.02054988]
[1646709019756,0.66202909,2549.4,2549.2,0.90611603]
[1646709020156,1.15302909,2549.4,2549.2,0.90611603]
[1646709020357,0.66202909,2549.3,2549.2,0.90611603]
[1646709021059,0.66202909,2549.3,2549.2,0.91125303]
[1646709021663,0.66202909,2549.3,2549.2,0.90611603]
[1646709022503,0.66202909,2549.3,2549.1,0.00513041]
[1646709022703,1.15302909,2549.3,2549.1,0.00513041]
[1646709022903,1.15302909,2549.3,2548.7,0.02052472]
[1646709022904,0.66202909,2549.2,2548.6,2.1539797]
[1646709023103,1.64331909,2549.2,2548.7,0.88707269]
[1646709023303,2.75357,2549.3,2549.1,0.0049953]
[1646709023505,0.69213788,2549.2,2549.1,0.0049953]
[1646709023704,0.69213788,2549.2,2549.1,0.8922145]
[1646709024106,0.69213788,2549.2,2549.1,0.8872192]
[1646709024307,0.98128,2549.1,2548.6,2.1539797]
[1646709024504,0.98128,2549.1,2549.0,0.00499535]
[1646709024706,1.67336096,2549.1,2549.0,0.00499535]
[1646709024905,1.67336096,2549.1,2549.0,0.89226184]
[1646709025506,1.67336096,2549.1,2549.0,0.88726649]
[1646709025710,1.67336096,2549.1,2548.9,0.00499663]
[1646709025908,0.98128,2549.1,2549.0,0.88726649]
[1646709026161,2.65472887,2549.1,2549.0,0.88726649]
[1646709026362,2.95472887,2549.1,2549.0,0.88726649]
[1646709027161,0.491,2549.3,2549.0,0.88726649]
[1646709027364,2.71343,2549.6,2549.0,0.88726649]
[1646709027562,0.69211387,2549.5,2549.0,0.88726649]
[1646709027763,0.69211387,2549.5,2549.0,1.18726649]
[1646709027964,0.69211387,2549.5,2549.1,0.88726649]
[1646709028164,0.69211387,2549.5,2549.2,0.98598564]
[1646709028368,0.69211387,2549.5,2549.3,1.86827729]
[1646709028563,0.69211387,2549.5,2549.3,0.9810108]
[1646709029363,0.69211387,2549.5,2549.0,1.9620505]
[1646709029667,1.67189047,2549.5,2549.1,0.88736438]
[1646709029907,0.69211387,2549.4,2549.1,0.88736438]
[1646709030506,0.9797766,2549.5,2549.4,0.78267403]
[1646709030709,1.67189222,2549.5,2549.4,0.78267403]
[1646709030909,1.67189222,2549.5,2549.4,1.67003841]
[1646709031112,2.65300222,2549.5,2549.4,0.78267403]
[1646709031313,1.67189222,2549.5,2549.4,1.67004459]
[1646709032111,0.69211562,2549.5,2549.4,1.67004459]
[1646709032513,0.69211562,2549.6,2549.4,1.67004459]
[1646709032711,2.94386,2549.7,2549.4,0.78267403]
[1646709032712,0.69211562,2549.5,2549.4,0.78267403]
[1646709032913,0.69211562,2549.5,2549.4,1.66962547]
[1646709033112,0.69211562,2549.6,2549.4,1.66962547]
[1646709033313,0.69211562,2549.5,2549.4,0.78267403]
[1646709033554,0.69211562,2549.5,2549.4,1.66968334]
[1646709033757,2.94386,2549.7,2549.4,1.66968334]
[1646709033758,0.69211562,2549.6,2549.4,1.66968334]
[1646709033960,1.67312562,2549.6,2549.4,0.78267403]
[1646709034157,0.69211562,2549.5,2549.4,0.78267403]
[1646709034558,0.69211562,2549.5,2549.4,1.66960882]
[1646709036168,0.69211562,2549.5,2549.4,0.78267403]
[1646709036568,0.69211562,2549.5,2549.4,1.64022658]
[1646709036767,0.69211562,2549.5,2549.4,0.78267403]
[1646709037166,0.69211562,2549.5,2549.4,1.64018756]
[1646709041159,0.69211562,2549.5,2549.4,2.56538756]
[1646709041460,0.72226923,2549.5,2549.4,2.56538756]
[1646709041659,0.72226923,2549.7,2549.4,2.56538756]
[1646709041958,0.72226923,2549.7,2549.5,0.85751353]
[1646709042762,0.72226923,2549.7,2549.5,0.86250779]
[1646709042960,0.72226923,2549.7,2549.6,0.85751353]
[1646709043964,0.72226923,2549.7,2549.5,0.86251557]
[1646709044161,0.72226923,2549.7,2549.6,0.85751353]
[1646709044363,0.72226923,2549.7,2549.5,0.00500204]
[1646709044821,0.72226923,2549.7,2549.4,1.08267403]
[1646709045109,0.72226923,2549.7,2549.5,0.86253991]
[1646709045313,0.72226923,2549.7,2549.5,0.00500538]
[1646709045909,0.72226923,2549.7,2549.4,1.08267403]
[1646709046115,0.72226923,2549.7,2549.5,0.8576004]
[1646709046314,0.72226923,2549.7,2549.5,0.86260578]
[1646709046513,0.72226923,2549.7,2549.5,0.00500538]
[1646709047113,2.68442923,2549.7,2549.5,0.00500538]
[1646709047315,0.72226923,2549.6,2549.4,1.08267403]
[1646709047514,0.72226923,2549.6,2549.5,0.86268493]
[1646709048416,0.72226923,2549.6,2549.5,0.8576802]
[1646709049559,0.72226923,2549.6,2549.4,0.78267403]
[1646709049858,2.68453923,2549.6,2549.4,0.78267403]
[1646709050058,0.72226923,2549.5,2549.4,0.78267403]
[1646709053508,0.72226923,2549.5,2549.4,1.64143068]
[1646709060609,4.22226923,2549.5,2549.4,1.64143068]
[1646709060811,4.22226923,2549.5,2549.4,0.78180458]
[1646709060812,4.71326923,2549.5,2549.4,0.78180458]
[1646709061011,1.21326923,2549.5,2549.4,0.78180458]
[1646709061215,4.71326923,2549.5,2549.4,0.78180458]
[1646709062014,1.21326923,2549.5,2549.4,1.63151127]
[1646709062212,1.21326923,2549.5,2549.4,1.6314325]
[1646709064256,0.72226923,2549.5,2549.4,1.6314325]
[1646709065156,0.72226923,2549.7,2549.4,1.6314325]
[1646709065357,0.72226923,2549.6,2549.5,0.84962792]
[1646709067620,0.72226923,2549.6,2549.4,0.78180458]
[1646709067816,2.68464923,2549.6,2549.4,0.78180458]
[1646709068116,1.96238,2549.6,2549.5,0.83026754]
[1646709068318,2.71644362,2549.6,2549.5,0.83026754]
[1646709068718,3.20744362,2549.6,2549.4,0.78680619]
[1646709068920,0.75406362,2549.5,2549.4,0.78180458]
[1646709069117,0.75406362,2549.5,2549.4,0.78680619]
[1646709069322,0.75406362,2549.5,2549.4,1.61717759]
[1646709069519,4.25406362,2549.5,2549.4,0.78680619]
[1646709069720,5.45573895,2549.5,2549.4,0.78680619]
[1646709070121,5.45573895,2549.5,2549.4,0.78180458]
[1646709070819,1.95573895,2549.5,2549.4,0.78180458]
[1646709071066,1.24506362,2549.5,2549.4,0.78180458]
[1646709071263,4.74506362,2549.5,2549.4,0.78180458]
[1646709072065,4.74506362,2549.5,2549.4,4.58e-06]
[1646709072264,13.01092398,2549.5,2549.3,9.886e-05]
[1646709072464,1.73556362,2549.4,2549.0,0.81616944]
[1646709072763,1.73556362,2549.4,2548.9,0.01999842]
[1646709072764,4.90808216,2549.3,2548.9,0.01999842]
[1646709072963,4.90808216,2549.3,2549.0,0.81633891]
[1646709072964,0.75406362,2549.2,2549.0,0.81633891]
[1646709073165,0.491,2549.1,2549.0,0.81633891]
[1646709073464,1.24506362,2549.1,2549.0,0.81633891]
[1646709073965,1.24506362,2549.1,2548.6,0.191694]
[1646709073966,2.22651362,2549.1,2548.7,0.81633891]
[1646709074164,0.75406362,2549.0,2548.7,0.81633891]
[1646709074366,0.491,2548.9,2548.7,0.81633891]
[1646709074563,0.75406362,2548.8,2548.7,0.81633891]
[1646709075010,1.24506362,2548.8,2548.7,0.81633891]
[1646709076011,1.9344,2549.3,2548.7,1.79749891]
[1646709076214,1.9344,2549.3,2548.8,0.81633891]
[1646709076215,0.76793538,2549.2,2548.8,0.81633891]
[1646709076415,0.491,2549.1,2548.9,0.81633891]
[1646709076618,0.491,2549.1,2549.0,0.81633891]
[1646709077016,1.26887528,2549.1,2549.0,0.81633891]
[1646709077615,3.23164528,2549.1,2548.9,0.00557658]
[1646709077817,0.77787528,2549.0,2548.9,0.00557658]
[1646709078018,1.26887528,2549.0,2548.9,0.00557658]
[1646709078217,1.26887528,2549.0,2548.9,0.81169617]
[1646709078417,1.26887528,2549.0,2548.9,0.80611959]
[1646709078659,1.26887528,2549.0,2548.8,0.00557669]
[1646709078857,1.47237,2549.0,2548.9,0.80611959]
[1646709079060,2.2500986,2549.0,2548.9,0.80611959]
[1646709079458,2.2500986,2549.0,2548.9,0.75611959]
[1646709079860,2.2500986,2549.0,2548.8,0.00557669]
[1646709080059,0.491,2549.0,2548.8,0.00557669]
[1646709080661,3.5,2548.9,2548.8,0.00557669]
[1646709080860,3.5,2548.9,2548.2,0.57767227]
[1646709081060,0.491,2548.9,2548.8,0.00557675]
[1646709082166,0.491,2548.9,2548.2,1.80009058]
[1646709083208,0.491,2548.9,2548.3,0.981356]
[1646709084207,0.491,2548.9,2548.2,0.57767227]
[1646709084415,0.491,2548.9,2548.0,1.9627115]
[1646709084416,3.991,2548.9,2548.0,1.9627115]
[1646709084608,5.2008,2548.9,2547.9,0.3]
[1646709084810,6.87923081,2548.9,2547.8,4.80159145]
[1646709085009,9.21048567,2548.9,2547.8,4.79946373]
[1646709085208,5.71048567,2548.9,2547.9,1.18288435]
[1646709085410,1.96302,2548.7,2547.9,1.18288435]
[1646709085611,0.491,2548.6,2547.9,1.18288435]
[1646709086067,0.491,2548.6,2548.3,0.00557431]
[1646709086870,0.491,2548.6,2547.8,1.962862]
[1646709087073,2.45414,2548.6,2547.8,1.962862]
[1646709087272,1.77258,2548.6,2548.3,0.00557425]
[1646709088170,1.77258,2548.6,2547.9,1.21170245]
[1646709088370,1.77258,2548.6,2548.3,0.00557425]
[1646709089070,0.98159,2548.5,2548.3,0.00557425]
[1646709089271,0.491,2548.4,2547.8,1.962862]
[1646709089471,0.491,2548.4,2548.3,0.00557425]
[1646709090509,0.491,2548.4,2547.8,1.962862]
[1646709090710,0.491,2548.4,2548.2,0.00557437]
[1646709091315,3.5,2548.3,2548.2,0.00557437]
[1646709091517,4.9663,2548.3,2548.2,9.404e-05]
[1646709091722,4.9663,2548.3,2547.4,0.00212772]
[1646709091919,0.98185,2548.0,2547.2,1.23553972]
[1646709092118,0.491,2547.9,2547.7,0.02230126]
[1646709093022,1.96375,2547.8,2547.2,1.03755411]
[1646709093217,0.491,2547.7,2547.2,1.03542639]
[1646709093419,0.491,2547.7,2547.2,0.012512]
[1646709094060,1.477,2547.7,2547.2,0.012512]
[1646709094459,1.477,2547.7,2547.3,0.00539136]
[1646709095259,1.477,2547.7,2547.2,0.012512]
[1646709095460,1.477,2547.7,2547.2,0.208712]
[1646709095660,1.477,2547.7,2547.4,0.00539131]
[1646709095661,4.977,2547.7,2547.4,0.00539131]
[1646709096265,5.95897,2547.7,2547.4,0.00539131]
[1646709096465,5.95897,2547.7,2547.2,0.012512]
[1646709096466,6.94098,2547.7,2547.2,0.012512]
[1646709097322,7.94098,2547.7,2547.2,0.012512]
[1646709097511,7.92302,2547.7,2547.2,0.012512]
[1646709097912,7.92302,2547.7,2547.3,0.00514551]
[1646709098112,6.94098,2547.7,2547.3,0.00514551]
[1646709098911,6.94098,2547.7,2547.2,0.012512]
[1646709099113,3.44098,2547.7,2547.4,0.00514546]
[1646709099513,6.94098,2547.7,2547.4,0.00514546]
[1646709100116,2.45897,2547.7,2547.2,0.012512]
[1646709100321,1.477,2547.7,2547.2,0.012512]
[1646709100516,0.491,2547.7,2547.2,0.012512]
[1646709100716,0.491,2547.7,2547.2,0.208712]
[1646709101561,0.491,2547.7,2547.3,0.00531257]
[1646709102464,0.491,2547.7,2547.2,0.208712]
[1646709102662,0.98189,2548.0,2547.2,0.604912]
[1646709102865,1.13819997,2548.2,2547.4,0.00531252]
[1646709102866,1.0,2548.2,2547.4,0.00531252]
[1646709103063,1.1608,2548.3,2547.5,0.1962]
[1646709103663,1.1608,2548.3,2547.6,1.14743265]